fUSD/lending_fUSD_20250124
["ID","MTS","AMOUNT","RATE_DAILY","PERIOD"]
[350207281,1737689444345,-715.81,0.00019178,2]
[350207282,1737689444355,-500.0,0.00019178,2]
[350207283,1737689444364,-1205.98,0.00019178,2]
[350207284,1737689444374,-500.0,0.00019178,2]
[350207285,1737689444389,-719.0,0.00019178,2]
[350207286,1737689444399,-666.5,0.00019178,2]
[350207287,1737689444408,-1075.65,0.00019178,2]
[350207288,1737689444417,-500.0,0.00019178,2]
[350207289,1737689444427,-4000.0,0.00019178,2]
[350207290,1737689444437,-1311.22462217,0.00019256,2]
[350207291,1737689444447,-150.0,0.00019267,2]
[350207292,1737689444456,-360.20503804,0.00019279,2]
[350207293,1737689444466,-125866.668101,0.0001929,2]
[350207294,1737689444635,-10533.61196256,0.0001929,2]
[350207295,1737689444647,-409.8822205,0.0001929,2]
[350207296,1737689444658,-421.3557999,0.0001929,2]
[350207297,1737689444670,-254.46,0.0001929,2]
[350207298,1737689444689,-8791.74987647,0.0001929,2]
[350207299,1737689444700,-494.61492411,0.0001929,2]
[350207300,1737689444712,-6834.64085429,0.0001929,2]
[350207301,1737689444727,-2614.97457783,0.0001929,2]
[350207302,1737689444738,-3653.74999986,0.0001929,2]
[350207303,1737689444749,-3592.79863,0.0001929,2]
[350207304,1737689444762,-3590.61534836,0.0001929,2]
[350207305,1737689444773,-1151.55012815,0.0001929,2]
[350207306,1737689444784,-256.7011023,0.0001929,2]
[350207307,1737689445067,-500.0,0.00016438,2]
[350207308,1737689445083,-187.75345154,0.000185,2]
[350207309,1737689445092,-2510.5384419,0.00018502,2]
[350207310,1737689445103,-1393.4615581,0.00018502,2]
[350207311,1737689445112,-500.0,0.00018783,2]
[350207312,1737689445122,-500.0,0.00019057,2]
[350207313,1737689445133,-10987.99859374,0.0001929,2]
[350207314,1737689445144,-297.97274574,0.0001929,2]
[350207315,1737689445155,-18554.98135589,0.0001929,2]
[350207316,1737689445164,-609.279078,0.00019293,2]
[350207317,1737689445174,-405.307645,0.00019293,2]
[350207318,1737689445183,-1135.6,0.00019293,2]
[350207319,1737689445192,-723.35,0.00019293,2]
[350207320,1737689445202,-500.0,0.00019293,2]
[350207321,1737689445211,-500.0,0.00019293,2]
[350207322,1737689445221,-1035.95,0.00019293,2]
[350207323,1737689445230,-1419.55,0.00019293,2]
[350207324,1737689445239,-1122.99,0.00019293,2]
[350207325,1737689445249,-500.0,0.00019293,2]
[350207326,1737689445258,-500.0,0.00019293,2]
[350207327,1737689445268,-1157.14,0.00019293,2]
[350207328,1737689445277,-620.74,0.00019293,2]
[350207329,1737689445287,-500.0,0.00019293,2]
[350207330,1737689445296,-500.0,0.00019293,2]
[350207331,1737689445306,-500.0,0.00019293,2]
[350207332,1737689445315,-737.89,0.00019293,2]
[350207333,1737689445324,-500.0,0.00019293,2]
[350207334,1737689445333,-647.14,0.00019293,2]
[350207335,1737689445343,-572.96,0.00019293,2]
[350207336,1737689445352,-1634.71,0.00019293,2]
[350207337,1737689445362,-1346.54,0.00019293,2]
[350207338,1737689445371,-500.0,0.00019293,2]
[350207339,1737689445384,-856.46,0.00019293,2]
[350207340,1737689445394,-500.0,0.00019293,2]
[350207341,1737689445404,-500.0,0.00019293,2]
[350207342,1737689445413,-1088.73,0.00019293,2]
[350207343,1737689445422,-151.0,0.00019293,2]
[350207344,1737689445431,-500.0,0.00019294,2]
[350207345,1737689445441,-500.0,0.00019294,2]
[350207346,1737689445450,-514.38,0.00019294,2]
[350207347,1737689445459,-276.59,0.00019294,2]
[350207348,1737689445468,-500.0,0.00019294,2]
[350207349,1737689445477,-394.09,0.00019294,2]
[350207350,1737689445487,-435.96,0.00019294,2]
[350207351,1737689445496,-956.13,0.00019294,2]
[350207352,1737689445506,-500.0,0.00019294,2]
[350207353,1737689445515,-500.0,0.00019294,2]
[350207354,1737689445524,-500.0,0.00019294,2]
[350207355,1737689445533,-268.48,0.00019294,2]
[350207356,1737689445542,-480.9811207,0.00019294,2]
[350207357,1737689445551,-500.0,0.00019294,2]
[350207358,1737689445560,-216.4,0.00019294,2]
[350207359,1737689445569,-500.0,0.00019294,2]
[350207360,1737689445579,-534.12,0.00019294,2]
[350207361,1737689445588,-500.0,0.00019294,2]
[350207362,1737689445598,-500.0,0.00019294,2]
[350207363,1737689445607,-500.0,0.00019294,2]
[350207364,1737689445615,-1257.65,0.00019294,2]
[350207365,1737689445624,-1930.23,0.00019294,2]
[350207366,1737689445636,-500.0,0.00019294,2]
[350207367,1737689445645,-503.4,0.00019294,2]
[350207368,1737689445655,-182.22,0.00019294,2]
[350207370,1737689445665,-500.0,0.00019294,2]
[350207372,1737689445675,-500.0,0.00019294,2]
[350207374,1737689445684,-406.93847953,0.00019294,2]
[350207375,1737689445695,-93.06152047,0.00019294,2]
[350207376,1737689445705,-241.14,0.00019294,2]
[350207377,1737689445715,-500.0,0.00019294,2]
[350207378,1737689445727,-184.76,0.00019294,2]
[350207379,1737689445736,-644.68,0.00019294,2]
[350207380,1737689445746,-501.04,0.00019294,2]
[350207381,1737689445755,-271.36,0.00019296,2]
[350207382,1737689445764,-1000.0,0.0001933,2]
[350207383,1737689445773,-293.8,0.00019331,2]
[350207384,1737689445782,-187.89427334,0.00019331,2]
[350207385,1737689445791,-244.90099176,0.00019331,2]
[350207386,1737689445801,-547.48,0.00019331,2]
[350207387,1737689445811,-500.0,0.00019331,2]
[350207388,1737689445821,-500.0,0.00019331,2]
[350207389,1737689445830,-500.0,0.00019331,2]
[350207390,1737689445840,-500.0,0.00019331,2]
[350207391,1737689445849,-500.0,0.00019331,2]
[350207392,1737689445858,-500.0,0.00019331,2]
[350207393,1737689445868,-500.0,0.00019331,2]
[350207394,1737689445877,-500.0,0.00019331,2]
[350207395,1737689445890,-500.0,0.00019331,2]
[350207396,1737689445900,-500.0,0.00019331,2]
[350207397,1737689445909,-418.14,0.00019331,2]
[350207398,1737689445919,-309.39,0.00019331,2]
[350207399,1737689445929,-271.30299892,0.00019369,2]
[350207400,1737689445941,-1861.49277817,0.00019369,2]
[350207401,1737689445950,-4070.34261142,0.00019369,2]
[350207402,1737689445961,-1016.4582106,0.00019369,2]
[350207403,1737689445973,-500.0,0.00019369,2]
[350207404,1737689445987,-544.32727247,0.00019369,2]
[350207405,1737689445998,-274.50242182,0.00019369,2]
[350207406,1737689446009,-4677.01183619,0.00019369,2]
[350207407,1737689446018,-344.1023437,0.00019369,2]
[350207408,1737689446027,-6746.2807936,0.00019369,2]
[350207409,1737689446036,-3672.8318321,0.00019369,2]
[350207410,1737689446047,-392.45948441,0.00019369,2]
[350207411,1737689446235,-1410.85575876,0.0001628,2]
[350207412,1737689446247,-1100.817,0.0001628,2]
[350207413,1737689446257,-1500.47,0.0001628,2]
[350207414,1737689446269,-2327.93,0.0001628,2]
[350207415,1737689446281,-8463.91814124,0.0001628,2]
[350207416,1737689446290,-187.75345154,0.00018579,2]
[350207417,1737689446299,-2969.01338209,0.00019369,2]
[350207418,1737689446308,-268.9888889,0.00019369,2]
[350207419,1737689446318,-3233.82852565,0.00019375,2]
[350207420,1737689446327,-150.0,0.00019375,4]
[350207421,1737689446336,-150.0,0.00019375,4]
[350207422,1737689446346,-150.0,0.00019375,4]
[350207423,1737689446355,-242.49362371,0.00019375,4]
[350207424,1737689446365,-150.0,0.00019375,4]
[350207425,1737689446374,-3000.0,0.00019375,2]
[350207426,1737689446387,-700.0,0.00019375,2]
[350207427,1737689446397,-700.0,0.00019375,2]
[350207428,1737689446406,-700.0,0.00019375,2]
[350207429,1737689446415,-491.70027711,0.00019375,2]
[350207430,1737689446560,-208.29972289,0.00019375,2]
[350207431,1737689446570,-686.70472785,0.00019375,2]
[350207432,1737689446581,-13.29527215,0.00019375,2]
[350207433,1737689446591,-700.0,0.00019375,2]
[350207434,1737689446599,-4.40808754,0.00019375,2]
[350207435,1737689446701,-695.59191246,0.00019375,2]
[350207436,1737689446713,-700.0,0.00019375,2]
[350207437,1737689446723,-700.0,0.00019375,2]
[350207438,1737689446732,-700.0,0.00019375,2]
[350207439,1737689446742,-500.0,0.00019382,2]
[350207440,1737689446751,-5800.0,0.00019383,2]
[350207441,1737689446760,-5800.0,0.00019383,2]
[350207442,1737689446769,-151.0,0.00019383,2]
[350207443,1737689446779,-141.05014293,0.00019383,2]
[350207444,1737689446793,-9.94985707,0.00019383,2]
[350207445,1737689446802,-308.673093,0.00019383,2]
[350207446,1737689446812,-14.96223717,0.00019383,2]
[350207447,1737689446828,-293.71085583,0.00019383,2]
[350207448,1737689446836,-151.0,0.00019383,2]
[350207449,1737689446846,-1514.54914421,0.00019383,2]
[350207450,1737689446962,-4506.56984154,0.00019383,2]
[350207451,1737689446974,-3536.28,0.00019383,2]
[350207452,1737689447123,-187.75345154,0.00018743,2]
[350207453,1737689447134,-2855.62583258,0.00019383,2]
[350207454,1737689447146,-108373.69941578,0.00019383,2]
[350207455,1737689447155,-5800.0,0.00019392,2]
[350207456,1737689447165,-5800.0,0.00019392,2]
[350207457,1737689447174,-5800.0,0.00019392,2]
[350207458,1737689447183,-5800.0,0.000194,2]
[350207459,1737689447193,-5800.0,0.000194,2]
[350207460,1737689447202,-220.0,0.000194,2]
[350207461,1737689447211,-5800.0,0.000194,2]
[350207462,1737689447220,-1311.22462217,0.000194,2]
[350207463,1737689447230,-318.26703876,0.000194,2]
[350207464,1737689447240,-151.0,0.000194,2]
[350207465,1737689447250,-151.0,0.000194,2]
[350207466,1737689447259,-187.885825,0.000194,2]
[350207467,1737689447269,-187.885825,0.000194,2]
[350207468,1737689447278,-439.932153,0.000194,2]
[350207469,1737689447288,-439.932153,0.000194,2]
[350207470,1737689447297,-301.5388871,0.000194,2]
[350207471,1737689447306,-651.63131082,0.000194,2]
[350207472,1737689447315,-25466.07076302,0.000194,2]
[350207473,1737689447324,-3354.3360724,0.000194,2]
[350207474,1737689447333,-150.0,0.00019417,4]
[350207475,1737689447342,-360.20503804,0.00019417,2]
[350207476,1737689447351,-353.29,0.0001942,2]
[350207477,1737689447360,-150.0,0.00019448,4]
[350207478,1737689447370,-802.74,0.00019452,2]
[350207479,1737689447379,-646.54,0.00019452,2]
[350207480,1737689447391,-500.0,0.00019452,2]
[350207481,1737689447401,-500.0,0.00019452,2]
[350207482,1737689447410,-500.0,0.00019452,2]
[350207483,1737689447419,-790.11,0.00019452,2]
[350207484,1737689447429,-715.81,0.00019452,2]
[350207485,1737689447439,-500.0,0.00019452,2]
[350207486,1737689447448,-1205.98,0.00019452,2]
[350207487,1737689447458,-500.0,0.00019452,2]
[350207488,1737689447467,-719.0,0.00019452,2]
[350207489,1737689447476,-666.5,0.00019452,2]
[350207490,1737689447486,-1075.65,0.00019452,2]
[350207491,1737689447496,-500.0,0.00019452,2]
[350207492,1737689447506,-150.0,0.00019458,4]
[350207493,1737689447516,-150.0,0.00019473,2]
[350207494,1737689447526,-956.0,0.00019479,2]
[350207495,1737689447535,-28025.0,0.00019479,2]
[350207496,1737689447544,-8565.64242708,0.00019487,2]
[350207497,1737689447555,-152.0,0.00019489,5]
[350207498,1737689447564,-25381.46647631,0.0001949,2]
[350207499,1737689447574,-500.0,0.00019494,2]
[350207500,1737689447583,-182991.82295175,0.00019495,2]
[350207501,1737689447592,-264.025961,0.00019495,2]
[350207502,1737689447602,-4005.0,0.00019499,2]
[350207503,1737689447611,-501.72913928,0.00019499,2]
[350207504,1737689447621,-1024.68321798,0.00019499,5]
[350207505,1737689447630,-491.35192216,0.00019499,2]
[350207506,1737689447641,-500.0,0.00019499,2]
[350207507,1737689447650,-1000.0,0.00019499,2]
[350207508,1737689447659,-1000.0,0.00019499,2]
[350207509,1737689447668,-1000.0,0.00019499,2]
[350207510,1737689447677,-1000.0,0.00019499,2]
[350207511,1737689447686,-1000.0,0.00019499,2]
[350207512,1737689447695,-1000.0,0.00019499,2]
[350207513,1737689447703,-1000.0,0.00019499,2]
[350207514,1737689447713,-1000.0,0.00019499,2]
[350207515,1737689447726,-1000.0,0.00019499,2]
[350207516,1737689447736,-1000.0,0.00019499,2]
[350207517,1737689447745,-1000.0,0.00019499,2]
[350207518,1737689447754,-1000.0,0.00019499,2]
[350207519,1737689447765,-744.60367854,0.00019499,2]
[350207520,1737689447774,-198.9226462,0.000195,2]
[350207521,1737689447784,-369553.06712478,0.000195,2]
[350207522,1737689447795,-9923.11950713,0.000195,2]
[350207523,1737689447805,-544615.06366304,0.000195,15]
[350207524,1737689447816,-411.304995,0.000195,15]
[350207525,1737689447830,-316.86704382,0.000195,15]
[350207526,1737689447841,-1522.9792,0.000195,15]
[350207527,1737689447852,-500.0,0.000195,15]
[350207528,1737690043713,237.43,0.00010137,2]
[350207530,1737690528650,2600.0,0.00022,120]
[350207544,1737690632129,-167.61,0.00012329,2]
[350207545,1737690632139,-666.49,0.00015903,2]
[350207546,1737690632150,-550.0,0.00016437,2]
[350207547,1737690632160,-302.96,0.00016438,2]
[350207548,1737690632169,-500.0,0.00016438,2]
[350207549,1737690632180,-512.08420586,0.00016438,2]
[350207550,1737690632190,-500.0,0.00016438,2]
[350207551,1737690632199,-500.0,0.00016438,2]
[350207552,1737690632208,-500.0,0.00016438,2]
[350207553,1737690632218,-500.0,0.00016438,2]
[350207554,1737690632227,-500.0,0.00016438,2]
[350207555,1737690632236,-500.0,0.00016438,2]
[350207556,1737690632245,-381.94946298,0.00016438,2]
[350207557,1737690632255,-167.85622545,0.00016438,2]
[350207558,1737690632264,-500.0,0.00016438,2]
[350207559,1737690632274,-500.0,0.00016438,2]
[350207560,1737690632283,-500.0,0.00016438,2]
[350207561,1737690632292,-500.0,0.00016438,2]
[350207562,1737690632301,-500.0,0.00016438,2]
[350207563,1737690632310,-500.0,0.00016438,2]
[350207564,1737690632319,-151.75829049,0.000165,2]
[350207565,1737690632329,-500.0,0.00016712,2]
[350207566,1737690632338,-500.0,0.00016712,2]
[350207567,1737690632347,-157.36,0.00016712,2]
[350207568,1737690632356,-198.8,0.00016712,2]
[350207569,1737690632365,-237.43,0.00016813,2]
[350207570,1737690632374,-469.49,0.00017679,2]
[350207571,1737690632383,-514.1,0.0001773,2]
[350207572,1737690632393,-304.05,0.00017733,2]
[350207573,1737690632402,-1126.53,0.0001775,2]
[350207574,1737690632411,-979.33,0.00017753,2]
[350207575,1737690632421,-167.44,0.00017766,2]
[350207576,1737690632431,-23890.0,0.00017772,2]
[350207577,1737690632440,-388.7,0.00017779,2]
[350207578,1737690632449,-250.0,0.00017805,2]
[350207579,1737690632458,-1000.0,0.00017837,2]
[350207580,1737690632467,-300.0,0.00017845,2]
[350207581,1737690632476,-1515.1,0.00017883,2]
[350207582,1737690632485,-200.0,0.00017901,2]
[350207583,1737690632495,-164.04,0.00017933,2]
[350207584,1737690632504,-250.0,0.00017934,2]
[350207585,1737690632513,-1105.45,0.00017948,2]
[350207586,1737690632523,-163.33,0.00017971,2]
[350207587,1737690632532,-2859.89,0.00017972,2]
[350207588,1737690632541,-250.0,0.00017972,2]
[350207589,1737690632550,-271.38,0.00018013,2]
[350207590,1737690632560,-170.179,0.00018063,2]
[350207591,1737690632569,-1662.945,0.00018063,2]
[350207592,1737690632580,-151.74,0.00018082,2]
[350207593,1737690632589,-2162.0,0.000181,2]
[350207594,1737690632598,-165.41,0.00018102,30]
[350207595,1737690632607,-666.49,0.00018166,2]
[350207596,1737690632617,-179.57,0.00018184,2]
[350207597,1737690632626,-174.54,0.00018224,2]
[350207598,1737690632635,-230.47099615,0.00018551,2]
[350207600,1737690632644,-1489.55204524,0.00018553,2]
[350207602,1737690632653,-230.47099615,0.00018556,2]
[350207603,1737690632663,-1248.9802697,0.00018564,2]
[350207605,1737690632673,-531.97234477,0.00018566,2]
[350207607,1737690632682,-531.97234477,0.00018567,2]
[350207608,1737690632691,-797.95851717,0.00018567,2]
[350207609,1737690632700,-7831.67858553,0.00018567,2]
[350207611,1737690632709,-200.0,0.00018568,2]
[350207613,1737690632719,-1489.55204524,0.0001857,2]
[350207615,1737690632728,-7831.67858553,0.00018574,2]
[350207617,1737690632737,-797.95851717,0.0001858,2]
[350207618,1737690632746,-1270.772,0.00018582,2]
[350207619,1737690632755,-2019.0,0.00018582,2]
[350207620,1737690632764,-636.0,0.00018582,2]
[350207621,1737690632774,-567.0,0.00018582,2]
[350207622,1737690632943,-150.0,0.00018582,2]
[350207623,1737690632952,-1865.0,0.00018582,2]
[350207624,1737690632961,-1261.0,0.00018582,2]
[350207625,1737690632971,-2949.0,0.00018582,2]
[350207626,1737690632980,-782.0,0.00018582,2]
[350207627,1737690632990,-908.0,0.00018582,2]
[350207628,1737690632999,-538.0,0.00018582,2]
[350207629,1737690633009,-150.0,0.00018582,2]
[350207630,1737690633018,-3986.0,0.00018582,2]
[350207631,1737690633028,-1284.322,0.00018582,2]
[350207632,1737690633037,-3904.0,0.00018582,2]
[350207633,1737690633046,-151.455,0.00018582,2]
[350207634,1737690633055,-1106.0,0.00018582,2]
[350207635,1737690633065,-7831.67858553,0.0001859,2]
[350207636,1737690633074,-200.0,0.00018596,2]
[350207637,1737690633084,-200.0,0.00018607,2]
[350207638,1737690633094,-1248.9802697,0.0001861,2]
[350207639,1737690633104,-797.95851717,0.00018613,2]
[350207640,1737690633118,-1489.55204524,0.00018619,2]
[350207641,1737690633128,-230.47099615,0.00018621,2]
[350207642,1737690633137,-230.47099615,0.00018634,2]
[350207643,1737690633147,-1248.9802697,0.00018634,2]
[350207644,1737690633157,-531.97234477,0.00018636,2]
[350207645,1737690633167,-1248.9802697,0.00018641,2]
[350207646,1737690633176,-1248.9802697,0.00018643,2]
[350207647,1737690633185,-200.0,0.00018643,2]
[350207648,1737690633197,-7831.67858553,0.00018648,2]
[350207649,1737690633207,-200.0,0.00018649,2]
[350207650,1737690633216,-1489.55204524,0.00018656,2]
[350207651,1737690633226,-1489.55204524,0.00018661,2]
[350207652,1737690633235,-200.0,0.00018662,2]
[350207653,1737690633245,-797.95851717,0.00018666,2]
[350207654,1737690633254,-230.47099615,0.00018666,2]
[350207655,1737690633263,-531.97234477,0.00018676,2]
[350207656,1737690633272,-7831.67858553,0.00018681,2]
[350207657,1737690633281,-797.95851717,0.00018692,2]
[350207658,1737690633292,-531.97234477,0.00018699,2]
[350207659,1737690633302,-151.74,0.00018751,2]
[350207660,1737690633311,-882.92,0.00018781,2]
[350207661,1737690633321,-773.52,0.00018781,2]
[350207662,1737690633330,-773.52,0.00018781,2]
[350207663,1737690633340,-438.48,0.00018781,2]
[350207664,1737690633349,-1543.2,0.00018781,2]
[350207665,1737690633359,-780.92,0.00018781,2]
[350207666,1737690633368,-216.12302294,0.000189,2]
[350207667,1737690633378,-884.07629814,0.00019,2]
[350207668,1737690633387,-216.12302282,0.00019003,2]
[350207669,1737690633397,-216.12302282,0.00019107,2]
[350207670,1737690633406,-3715.0,0.00019112,2]
[350207671,1737690633415,-164.04,0.00019129,2]
[350207672,1737690633424,-151.0,0.00019151,2]
[350207673,1737690633434,-700.0,0.00019164,2]
[350207674,1737690633443,-500.0,0.00019164,2]
[350207675,1737690633452,-4000.0,0.00019178,2]
[350207676,1737690633461,-700.0,0.00019189,2]
[350207677,1737690633470,-700.0,0.00019189,2]
[350207678,1737690633479,-700.0,0.00019189,2]
[350207679,1737690633488,-700.0,0.00019189,2]
[350207680,1737690633497,-700.0,0.00019189,2]
[350207681,1737690633506,-700.0,0.00019189,2]
[350207682,1737690633517,-700.0,0.00019189,2]
[350207683,1737690633526,-700.0,0.00019189,2]
[350207684,1737690633535,-700.0,0.00019189,2]
[350207685,1737690633545,-700.0,0.00019189,2]
[350207686,1737690633554,-216.12302282,0.0001921,2]
[350207687,1737690633563,-150.0,0.00019267,2]
[350207688,1737690633573,-500.0,0.00019282,2]
[350207689,1737690633583,-6907.3348692,0.000193,3]
[350207690,1737690633593,-6754.43868094,0.000193,2]
[350207691,1737690633601,-381.25856472,0.000193,2]
[350207692,1737690633610,-150.0,0.00019306,2]
[350207693,1737690633619,-216.12302282,0.00019314,2]
[350207694,1737690633629,-159.50365816,0.0001932,2]
[350207695,1737690633637,-159.50365812,0.00019336,2]
[350207696,1737690633646,-159.50365812,0.00019352,2]
[350207697,1737690633655,-159.50365812,0.00019368,2]
[350207698,1737690633665,-159.50365812,0.00019384,2]
[350207699,1737690633674,-166.19021721,0.00019399,2]
[350207700,1737690633684,-166.19021714,0.00019399,2]
[350207701,1737690633693,-166.19021714,0.00019399,2]
[350207702,1737690633702,-166.19021714,0.00019399,2]
[350207703,1737690633712,-166.19021714,0.00019399,2]
[350207704,1737690633722,-166.19021714,0.000194,2]
[350207705,1737690633731,-166.19021714,0.000194,2]
[350207706,1737690633741,-340.1891,0.000194,2]
[350207707,1737690633751,-200.5216,0.000194,2]
[350207708,1737690633760,-5000.0,0.000194,2]
[350207709,1737690633769,-7656.4366,0.000194,2]
[350207710,1737690633778,-2500.0,0.000194,2]
[350207711,1737690633788,-166.19021714,0.000194,2]
[350207712,1737690633797,-166.19021714,0.000194,2]
[350207713,1737690633807,-185.0071,0.000194,2]
[350207714,1737690633816,-166.19021714,0.000194,2]
[350207715,1737690633825,-201.02592472,0.000194,2]
[350207716,1737690633837,-434.42087388,0.000194,2]
[350207717,1737690633847,-212.17802584,0.000194,2]
[350207718,1737690633856,-159.50365812,0.000194,2]
[350207719,1737690633866,-166.80627001,0.000194,2]
[350207720,1737690633876,-2236.22404826,0.000194,2]
[350207721,1737690633886,-150.81440385,0.00019402,2]
[350207722,1737690633895,-216.12302282,0.00019417,2]
[350207723,1737690633905,-151.74,0.0001942,2]
[350207724,1737690633914,-150.0,0.0001944,2]
[350207725,1737690633924,-502.80355861,0.00019473,2]
[350207726,1737690633933,-500.0,0.00019473,2]
[350207727,1737690633943,-731.44,0.00019489,2]
[350207728,1737690633953,-731.44,0.0001949,2]
[350207729,1737690633962,-196.64612399,0.0001949,2]
[350207730,1737690633971,-196.64612399,0.0001949,2]
[350207731,1737690633981,-196.64612399,0.0001949,2]
[350207732,1737690633990,-150.77,0.0001949,2]
[350207733,1737690633999,-150.77,0.0001949,2]
[350207734,1737690634008,-150.77,0.0001949,2]
[350207735,1737690634018,-150.77,0.0001949,2]
[350207736,1737690634027,-150.77,0.0001949,2]
[350207737,1737690634037,-150.77,0.0001949,2]
[350207738,1737690634046,-150.77,0.0001949,2]
[350207739,1737690634056,-150.77,0.0001949,2]
[350207740,1737690634065,-150.77,0.0001949,2]
[350207741,1737690634074,-150.77,0.0001949,2]
[350207742,1737690634085,-150.77,0.0001949,2]
[350207743,1737690634095,-150.77,0.0001949,2]
[350207744,1737690634105,-150.77,0.0001949,2]
[350207745,1737690634120,-150.77,0.0001949,2]
[350207746,1737690634129,-150.77,0.0001949,2]
[350207747,1737690634139,-150.77,0.0001949,2]
[350207748,1737690634149,-150.77,0.0001949,2]
[350207749,1737690634158,-150.77,0.0001949,2]
[350207750,1737690634167,-150.77,0.0001949,2]
[350207751,1737690634177,-150.77,0.0001949,2]
[350207752,1737690634187,-150.77,0.0001949,2]
[350207753,1737690634196,-150.77,0.0001949,2]
[350207754,1737690634206,-150.77,0.0001949,2]
[350207755,1737690634215,-150.77,0.0001949,2]
[350207756,1737690634224,-150.77,0.0001949,2]
[350207757,1737690634234,-150.77,0.0001949,2]
[350207758,1737690634244,-150.77,0.0001949,2]
[350207759,1737690634253,-150.77,0.0001949,2]
[350207760,1737690634263,-150.77,0.0001949,2]
[350207761,1737690634272,-150.77,0.0001949,2]
[350207762,1737690634283,-150.77,0.0001949,2]
[350207763,1737690634292,-150.77,0.0001949,2]
[350207764,1737690634301,-150.77,0.0001949,2]
[350207765,1737690634311,-150.77,0.0001949,2]
[350207766,1737690634320,-150.77,0.0001949,2]
[350207767,1737690634331,-150.77,0.0001949,2]
[350207768,1737690634341,-150.77,0.0001949,2]
[350207769,1737690634351,-150.77,0.0001949,2]
[350207770,1737690634361,-150.77,0.0001949,2]
[350207771,1737690634371,-150.77,0.0001949,2]
[350207772,1737690634381,-150.77,0.0001949,2]
[350207773,1737690634391,-150.77,0.0001949,2]
[350207774,1737690634401,-150.77,0.0001949,2]
[350207775,1737690634411,-150.77,0.0001949,2]
[350207776,1737690634421,-150.77,0.0001949,2]
[350207777,1737690634431,-150.77,0.0001949,2]
[350207778,1737690634441,-150.77,0.0001949,2]
[350207779,1737690634450,-150.77,0.0001949,2]
[350207780,1737690634460,-150.77,0.0001949,2]
[350207781,1737690634470,-150.77,0.0001949,2]
[350207782,1737690634479,-150.77,0.0001949,2]
[350207783,1737690634488,-150.77,0.0001949,2]
[350207784,1737690634498,-150.77,0.0001949,2]
[350207785,1737690634508,-150.77,0.0001949,2]
[350207786,1737690634517,-150.77,0.0001949,2]
[350207787,1737690634526,-150.77,0.0001949,2]
[350207788,1737690634536,-150.77,0.0001949,2]
[350207789,1737690634546,-150.77,0.0001949,2]
[350207790,1737690634556,-150.77,0.0001949,2]
[350207791,1737690634565,-150.77,0.0001949,2]
[350207792,1737690634574,-150.77,0.0001949,2]
[350207793,1737690634589,-150.77,0.0001949,2]
[350207794,1737690634599,-150.77,0.0001949,2]
[350207795,1737690634608,-150.77,0.0001949,2]
[350207796,1737690634618,-150.77,0.0001949,2]
[350207797,1737690634627,-150.77,0.0001949,2]
[350207798,1737690634637,-150.77,0.0001949,2]
[350207799,1737690634647,-150.77,0.0001949,2]
[350207800,1737690634656,-150.77,0.0001949,2]
[350207801,1737690634666,-150.77,0.0001949,2]
[350207802,1737690634675,-150.77,0.0001949,2]
[350207803,1737690634684,-150.77,0.0001949,2]
[350207804,1737690634693,-150.77,0.0001949,2]
[350207805,1737690634703,-150.77,0.0001949,2]